bitfinex-derivatives/quotes_SOLF0:USTF0_20241222
["timestamp","ask_amount","ask_price","bid_price","bid_amount"]
[1734902249290,3.2366,182.12,181.98,33.90563742]
[1734902249486,2.7489,182.08,182.01,33.90563742]
[1734902249691,0.2166,182.12,182.05,2.7492]
[1734902249987,0.2166,182.12,182.02,4.608]
[1734902249988,2.7489,182.08,182.02,4.608]
[1734902250295,0.2166,182.12,182.02,4.608]
[1734902250489,2.7486,182.1,182.02,4.608]
[1734902250689,0.2166,182.12,182.02,4.608]
[1734902250890,0.2166,182.12,182.04,33.90563742]
[1734902251289,0.2166,182.12,182.05,1.2751]
[1734902251888,2.7482,182.13,182.05,1.2751]
[1734902252097,3.02,182.2,182.07,33.90563742]
[1734902252398,2.7477,182.15,182.08,23.87953418]
[1734902252593,79.25240426,182.24,182.08,23.87953418]
[1734902252799,2.7475,182.17,182.12,2.7481]
[1734902253887,2.7476,182.16,182.12,2.7481]
[1734902256689,2.7477,182.15,182.11,2.7482]
[1734902258004,3.02,182.22,182.1,2.7484]
[1734902258005,2.748,182.14,182.1,2.7484]
[1734902258499,3.3007,182.21,182.08,20.85953418]
[1734902258698,3.0,182.17,182.05,110.52755546]
[1734902258894,1.6146,182.16,182.05,110.52755546]
[1734902259103,1.6146,182.16,182.02,4.588]
[1734902259296,1.6146,182.16,182.04,2.7493]
[1734902259899,2.7487,182.09,182.04,2.7493]
[1734902260103,1.6146,182.16,182.04,2.7493]
[1734902260303,1.6146,182.16,182.02,4.588]
[1734902260503,2.7486,182.09,182.05,2.7491]
[1734902261003,2.7486,182.09,182.02,4.588]
[1734902261004,2.7487,182.08,182.04,2.7493]
[1734902261299,1.6146,182.16,182.02,4.588]
[1734902261606,22.47413418,182.16,182.03,2.7494]
[1734902262405,2.749,182.07,182.03,2.7494]
[1734902262600,3.02,182.12,182.02,4.3375]
[1734902262802,3.02,182.12,181.99,4.0794]
[1734902262803,1.7205,182.11,181.99,4.0794]
[1734902262997,3.3024,182.11,181.98,20.85953418]
[1734902263401,3.3024,182.11,181.99,2.7499]
[1734902263616,3.3024,182.11,181.98,20.85953418]
[1734902263995,3.3024,182.11,182.02,2.7496]
[1734902264505,3.02,182.12,182.02,2.7496]
[1734902264506,2.7491,182.06,182.02,2.7496]
[1734902265606,2.7492,182.05,182.02,2.7496]
[1734902267203,2.7485,182.1,182.06,2.749]
[1734902267597,2.7485,182.1,182.04,20.85953418]
[1734902268104,6.3224,182.15,182.04,20.85953418]
[1734902268105,2.7487,182.08,182.04,20.85953418]
[1734902268307,6.3224,182.15,182.04,20.85953418]
[1734902269513,2.7482,182.12,182.08,2.7487]
[1734902270304,2.7483,182.11,182.04,20.85953418]
[1734902270504,2.7483,182.11,182.07,2.7488]
[1734902271913,2.7483,182.11,182.08,2.7487]
[1734902273310,4.6146,182.16,182.04,20.85953418]
[1734902274709,4.6146,182.16,182.05,2.7491]
[1734902275919,2.7486,182.09,182.05,2.7491]
[1734902276620,2.7486,182.09,182.06,2.7489]
[1734902277011,3.0,182.14,182.02,3.0]
[1734902277616,2.7489,182.07,182.03,2.7493]
[1734902278021,2.7489,182.07,182.02,3.0]
[1734902278234,2.7489,182.07,182.04,2.7492]
[1734902280222,2.7487,182.08,182.02,3.0]
[1734902280824,2.7485,182.1,182.06,2.7489]
[1734902281021,3.0,182.14,182.01,20.85953418]
[1734902281223,20.85953418,182.13,181.98,20.85953418]
[1734902281423,20.85953418,182.13,182.01,2.7497]
[1734902281827,20.85953418,182.1,181.95,90.65976781]
[1734902282124,2.7498,182.01,181.95,90.65976781]
[1734902282526,2.7498,182.01,181.95,3.0]
[1734902283352,1.6303,182.08,181.99,20.85953418]
[1734902283516,28.38188164,182.18,182.02,20.85953418]
[1734902283720,2.748,182.13,182.08,2.7486]
[1734902284125,22.88728164,182.16,182.05,23.85953418]
[1734902284424,0.88746507,182.15,181.98,20.85953418]
[1734902284720,0.88757232,182.14,181.98,20.85953418]
[1734902284916,20.85953418,182.16,182.01,20.85953418]
[1734902285517,7.9985,182.17,182.01,20.85953418]
[1734902285722,7.9985,182.17,182.02,3.0]
[1734902286125,20.85953418,182.16,181.98,21.91843418]
[1734902286326,20.85953418,182.13,181.95,23.85953418]
[1734902286517,3.88745451,182.12,181.95,111.51930199]
[1734902286719,3.0,182.12,181.95,111.51930199]
[1734902286918,0.88772473,182.11,181.95,111.51930199]
[1734902287123,0.88772473,182.11,181.95,23.85953418]
[1734902287323,2.7496,182.03,181.95,23.85953418]
[1734902287924,3.0,182.06,181.98,20.85953418]
[1734902288318,3.3675,182.09,181.98,20.85953418]
[1734902288523,2.7487,182.08,182.01,20.85953418]
[1734902288730,1.6416,182.09,182.01,20.85953418]
[1734902289225,1.6949,182.1,182.01,20.85953418]
[1734902289428,3.0,182.12,182.01,20.85953418]
[1734902289625,3.0,182.12,182.01,22.45503418]
[1734902289827,1.6012,182.14,182.04,20.85953418]
[1734902290030,1.6012,182.14,182.05,3.0]
[1734902290424,1.6949,182.18,182.05,3.0]
[1734902290626,20.85953418,182.22,182.07,20.85953418]
[1734902290827,3.88716709,182.21,182.07,20.85953418]
[1734902291028,2.7478,182.14,182.1,2.7483]
[1734902291430,3.0,182.2,182.07,20.85953418]
[1734902291621,22.50383418,182.22,182.07,20.85953418]
[1734902291925,3.8871525,182.21,182.07,20.85953418]
[1734902292131,0.8871525,182.2,182.05,3.0]
[1734902292333,2.7482,182.13,182.08,2.7488]
[1734902292531,3.0,182.16,182.05,3.0]
[1734902292731,5.0624,182.15,182.05,3.0]
[1734902293233,5.0624,182.15,182.01,25.45503418]
[1734902293631,2.7486,182.1,182.05,2.7492]
[1734902293929,5.0624,182.15,182.01,25.45503418]
[1734902294235,5.0624,182.15,182.04,20.85953418]
[1734902295424,1.7209,182.15,182.07,20.85953418]
[1734902295627,3.0,182.19,182.07,23.85953418]
[1734902296029,2.748,182.14,182.1,2.7484]
[1734902296234,1.6612,182.21,182.07,23.85953418]
[1734902296633,2.7476,182.16,182.12,2.7481]
[1734902297533,1.6612,182.21,182.1,20.85953418]
[1734902298035,1.6612,182.21,182.11,1.5992]
[1734902298334,4.4081,182.21,182.16,2.7475]
[1734902300438,2.7467,182.22,182.18,2.7473]
[1734902301047,22.88728164,182.33,182.2,20.85953418]
[1734902301236,0.88669138,182.32,182.23,20.85953418]
[1734902301438,0.88669138,182.32,182.24,3.0]
[1734902301834,2.7453,182.31,182.25,2.7462]
[1734902302735,2.7451,182.33,182.28,2.7458]
[1734902302936,4.9414,182.39,182.24,3.0]
[1734902303138,2.7453,182.32,182.26,2.746]
[1734902303339,22.15264182,182.39,182.26,2.746]
[1734902303555,0.8864255,182.38,182.23,20.85953418]
[1734902303743,2.7456,182.3,182.24,5.7463]
[1734902304336,12.06193371,182.39,182.24,2.7463]
[1734902304537,20.85953418,182.37,182.24,3.0]
[1734902304734,0.88647723,182.36,182.24,3.0]
[1734902305442,2.7457,182.29,182.24,3.0]
[1734902305839,3.0,182.34,182.24,3.0]
[1734902306039,0.88654618,182.33,182.24,3.0]
[1734902306235,3.0,182.35,182.24,3.0]
[1734902306440,1.5909,182.32,182.2,20.85953418]
[1734902306636,3.3722,182.31,182.21,3.0]
[1734902307345,3.3722,182.31,182.22,3.0]
[1734902307643,2.7459,182.28,182.23,2.7465]
[1734902310236,2.7459,182.28,182.2,20.85953418]
[1734902310237,2.7457,182.29,182.24,5.7463]
[1734902310443,3.3722,182.31,182.22,3.0]
[1734902310841,2.7461,182.26,182.22,3.0]
[1734902311345,3.3722,182.31,182.21,3.0]
[1734902311545,2.7462,182.26,182.21,5.7468]
[1734902311844,3.0,182.3,182.19,3.0]
[1734902312543,2.7464,182.24,182.2,2.747]
[1734902313747,2.7462,182.26,182.21,2.7468]
[1734902313939,3.0,182.3,182.21,2.7468]
[1734902314436,2.7459,182.28,182.19,3.0]
[1734902314638,3.0,182.3,182.22,2.7466]
[1734902315038,3.3722,182.31,182.22,2.7466]
[1734902315647,2.7457,182.29,182.22,2.7466]
[1734902315846,3.3722,182.31,182.22,2.7466]
[1734902316055,3.3722,182.31,182.19,3.0]
[1734902316253,2.7459,182.28,182.19,3.0]
[1734902316849,2.7459,182.28,182.23,2.7464]
[1734902317251,2.746,182.27,182.23,2.7464]
[1734902317654,3.3722,182.31,182.23,3.0]
[1734902318464,1.6509,182.31,182.23,23.85953418]
[1734902318757,23.85953418,182.37,182.23,23.85953418]
[1734902318956,3.4214,182.36,182.23,23.85953418]
[1734902319548,3.4214,182.36,182.27,2.7458]
[1734902320156,2.7454,182.31,182.27,2.7458]
[1734902320855,2.7455,182.3,182.26,2.7461]
[1734902322657,2.7457,182.29,182.26,2.7461]
[1734902323957,2.7457,182.29,182.23,23.85953418]
[1734902324257,2.7455,182.3,182.23,23.85953418]
[1734902324453,3.4214,182.36,182.24,3.0]
[1734902324657,3.4214,182.36,182.28,2.7458]
[1734902324861,2.7454,182.31,182.24,3.0]
[1734902325059,3.4214,182.36,182.24,3.0]
[1734902325458,2.7456,182.3,182.26,2.7461]
[1734902327161,3.4214,182.36,182.25,3.0]
[1734902327371,3.4214,182.36,182.26,20.85953418]
[1734902328461,2.7452,182.32,182.29,2.7456]
[1734902328654,2.7452,182.32,182.26,20.85953418]
[1734902329559,2.7452,182.32,182.27,2.7458]
[1734902329758,3.4214,182.36,182.26,20.85953418]
[1734902330364,3.4214,182.36,182.27,2.7458]
[1734902330961,2.7455,182.31,182.27,2.7458]
[1734902331463,3.4214,182.36,182.27,2.7458]
[1734902331664,24.28093418,182.36,182.23,23.85953418]
[1734902331862,0.88649073,182.35,182.23,23.85953418]
[1734902332062,2.746,182.27,182.24,2.7464]
[1734902332462,2.746,182.27,182.23,20.85953418]
[1734902332662,2.7458,182.28,182.23,23.85953418]
[1734902332862,24.28093418,182.36,182.23,23.85953418]
[1734902333260,3.4214,182.36,182.23,23.85953418]
[1734902333457,2.7455,182.3,182.27,2.7458]
[1734902335255,24.28093418,182.36,182.23,23.85953418]
[1734902335455,0.88647045,182.35,182.23,23.85953418]
[1734902335666,2.7461,182.27,182.23,5.7465]
[1734902336779,24.28093418,182.36,182.2,5.747]
[1734902336780,23.85953418,182.33,182.2,5.747]
[1734902336961,2.4770238,182.32,182.2,5.747]
[1734902337156,20.85953418,182.3,182.17,6.34656719]
[1734902337363,20.85953418,182.3,182.18,2.7473]
[1734902337564,1.6713,182.29,182.18,2.7473]
[1734902337759,2.7468,182.22,182.18,2.7473]
[1734902338262,4.7343,182.28,182.17,3.34656719]
[1734902338466,20.85953418,182.27,182.17,3.34656719]
[1734902338666,20.85953418,182.24,182.17,3.34656719]
[1734902339067,4.6741,182.23,182.17,3.34656719]
[1734902342062,1.6376,182.22,182.17,3.34656719]
[1734902342567,2.7474,182.18,182.17,3.34656719]
[1734902343066,1.6376,182.22,182.07,21.79643418]
[1734902343272,20.85953418,182.21,182.08,3.0]
[1734902343667,2.7478,182.16,182.12,2.7482]
[1734902344474,1.6376,182.22,182.08,3.0]
[1734902344672,1.6741,182.23,182.12,20.85953418]
[1734902345073,1.6741,182.23,182.16,2.7476]
[1734902347471,1.6741,182.23,182.15,2.7478]
[1734902347675,2.7472,182.19,182.15,2.7478]
[1734902349179,2.7472,182.19,182.16,2.7476]
[1734902349477,3.0,182.25,182.14,3.0]
[1734902349680,3.0,182.26,182.14,3.0]
[1734902349984,3.0,182.26,182.18,2.7472]
[1734902350178,3.0,182.26,182.14,3.0]
[1734902350380,4.6607,182.26,182.14,3.0]
[1734902350585,1.6607,182.26,182.18,2.7473]
[1734902351081,2.7468,182.22,182.18,2.7473]
[1734902351385,1.6607,182.26,182.2,2.747]
[1734902352181,2.7466,182.24,182.2,2.747]
[1734902354278,1.6607,182.26,182.18,2.7473]
[1734902354477,1.6607,182.26,182.15,3.0]
[1734902354683,1.6607,182.26,182.12,20.85953418]
[1734902354890,1.6607,182.26,182.14,2.7479]
[1734902355690,20.85953418,182.24,182.09,20.85953418]
[1734902355885,3.0,182.23,182.09,3.0]
[1734902356192,3.0,182.23,182.09,23.85953418]
[1734902356686,3.0,182.23,182.13,2.7479]
[1734902357888,3.0,182.23,182.09,23.85953418]
[1734902358094,3.0,182.23,182.15,20.85953418]
[1734902358293,1.6607,182.26,182.15,23.85953418]
[1734902359189,2.7465,182.24,182.18,2.7472]
[1734902359494,2.7465,182.24,182.15,23.85953418]
[1734902359892,1.6607,182.26,182.15,23.85953418]
[1734902360191,2.7465,182.23,182.15,23.85953418]
[1734902360495,2.7465,182.23,182.06,104.20976781]
[1734902360692,3.0,182.22,182.08,20.85953418]
[1734902360887,1.6448,182.21,182.08,20.85953418]
[1734902361297,1.6206,182.2,182.1,2.7485]
[1734902361699,1.6628,182.19,182.1,2.7485]
[1734902361997,2.7479,182.15,182.11,2.7483]
[1734902362495,2.7479,182.14,182.1,2.7485]
[1734902362895,3.0,182.18,182.05,20.85953418]
[1734902363096,2.7486,182.1,182.06,2.7491]
[1734902364097,2.7487,182.09,182.03,3.0]
[1734902364994,3.0,182.13,182.04,2.7494]
[1734902365192,2.7488,182.08,182.04,2.7494]
[1734902365898,1.5984,182.12,182.02,2.7496]
[1734902365899,2.7489,182.07,182.02,2.7496]
[1734902366092,1.6241,182.11,182.02,2.7496]
[1734902366289,1.6241,182.11,181.99,20.85953418]
[1734902366492,2.7491,182.06,182.01,2.7498]
[1734902366797,2.7491,182.06,181.99,20.85953418]
[1734902366995,2.749,182.07,182.02,2.7497]
[1734902368287,1.6241,182.11,182.01,2.7498]
[1734902368488,1.6241,182.11,181.94,0.9383]
[1734902368699,20.85953418,182.09,181.94,0.9383]
[1734902368894,3.0,182.08,181.95,2.7506]
[1734902369198,3.0,182.08,181.94,0.9383]
[1734902370199,3.0,182.08,181.98,20.85953418]
[1734902370496,3.0,182.08,182.01,2.7497]
[1734902370694,3.0,182.08,181.93,110.58675836]
[1734902370695,23.85953418,182.08,181.93,110.58675836]
[1734902371498,23.85953418,182.08,181.94,20.85953418]
[1734902371897,2.7494,182.04,181.98,2.7503]
[1734902372804,23.85953418,182.08,181.94,20.85953418]
[1734902373304,23.85953418,182.08,181.93,110.58675836]
[1734902373693,2.7501,182.0,181.93,110.58675836]
[1734902374103,3.0,182.03,181.93,110.58675836]
[1734902374398,3.3449,182.02,181.93,110.58675836]
[1734902374594,5.0711,182.02,181.93,110.58675836]
[1734902375693,5.0711,182.02,181.91,7.57110767]
[1734902375994,20.85953418,181.99,181.84,20.85953418]
[1734902376194,3.0,181.98,181.86,2.7521]
[1734902377300,2.7509,181.95,181.84,20.85953418]
[1734902377802,2.7509,181.95,181.9,2.7514]
[1734902378901,3.0,181.98,181.85,33.97968907]
[1734902379412,36.97968907,181.98,181.83,3.0]
[1734902379705,2.7514,181.91,181.86,2.752]
[1734902380102,3.0,181.94,181.86,2.752]
[1734902380302,3.0,181.94,181.85,2.7522]
[1734902380505,3.0,181.94,181.82,33.97968907]
[1734902380705,2.7521,181.87,181.83,2.7525]
[1734902380907,3.0,181.88,181.81,3.35329999]
[1734902381616,2.7526,181.83,181.81,3.35329999]
[1734902381810,3.0,181.88,181.81,3.35329999]
[1734902382312,2.7526,181.83,181.81,3.35329999]
[1734902383906,3.0,181.88,181.74,36.97968907]
[1734902384307,3.0,181.88,181.74,3.0]
[1734902384507,2.753,181.81,181.75,2.7536]
[1734902384910,3.0,181.83,181.74,33.97968907]
[1734902385211,3.0,181.86,181.74,33.97968907]
[1734902385615,2.7524,181.85,181.8,2.753]
[1734902385908,3.0,181.86,181.8,2.753]
[1734902387517,2.7525,181.84,181.8,2.753]
[1734902390513,3.0,181.87,181.74,33.97968907]
[1734902390709,3.0,181.91,181.8,33.97968907]
[1734902391410,2.7519,181.88,181.84,2.7523]
[1734902391612,2.7519,181.88,181.8,33.97968907]
[1734902392016,2.7519,181.88,181.84,2.7524]
[1734902393410,36.97968907,181.91,181.77,36.97968907]
[1734902393626,36.97968907,181.91,181.76,3.0]
[1734902394114,2.7527,181.82,181.78,2.7532]
[1734902394914,2.7529,181.81,181.77,2.7534]
[1734902395106,3.0,181.85,181.74,6.35456399]
[1734902395305,3.2181,181.84,181.74,3.35456399]
[1734902395507,2.7536,181.76,181.74,3.35456399]
[1734902396309,3.0,181.8,181.65,0.2306]
[1734902396514,33.97968907,181.79,181.65,0.2306]
[1734902396707,33.97968907,181.79,181.64,269.6832069]
[1734902396909,2.7543,181.72,181.68,2.7547]
[1734902397508,2.7543,181.72,181.67,2.755]
[1734902397706,2.7543,181.72,181.64,269.6832069]
[1734902397914,2.7541,181.73,181.64,269.6832069]
[1734902398115,3.0,181.75,181.64,269.6832069]
[1734902398516,2.7546,181.7,181.64,269.6832069]
[1734902398915,2.7546,181.7,181.65,2.7551]
[1734902399514,1.7103,181.74,181.64,2.7554]
[1734902399719,1.7231,181.73,181.64,2.7554]
[1734902400418,1.7231,181.73,181.66,2.7551]
[1734902400619,1.7231,181.73,181.62,0.9412]
[1734902400810,1.7103,181.74,181.69,2.7546]
[1734902401013,3.0,181.75,181.65,3.0]
[1734902401213,3.0,181.75,181.68,2.7547]
[1734902401413,3.0,181.75,181.66,33.97968907]
[1734902401814,3.0,181.75,181.71,2.7542]
[1734902402210,5.7538,181.75,181.66,33.97968907]
[1734902402620,3.0,181.75,181.66,33.97968907]
[1734902402821,2.754,181.73,181.65,3.0]
[1734902403121,3.0,181.75,181.65,3.0]
[1734902404326,3.0,181.75,181.71,2.7541]
[1734902404720,5.7538,181.75,181.71,2.7541]
[1734902404918,3.0,181.75,181.64,3.35654323]
[1734902405225,2.7542,181.72,181.64,3.35654323]
[1734902405427,3.0,181.75,181.64,3.35654323]
[1734902405628,3.0,181.75,181.65,2.7551]
[1734902405929,2.7541,181.73,181.64,3.35654323]
[1734902406127,3.0,181.75,181.67,2.7548]
[1734902406324,3.0,181.75,181.64,3.35654323]
[1734902406525,2.7541,181.73,181.64,3.35654323]
[1734902406925,3.0,181.74,181.64,3.35654323]
[1734902407427,3.0,181.78,181.74,2.7538]
[1734902407629,5.7532,181.78,181.74,2.7538]
[1734902408325,5.1137,181.79,181.68,3.0]
[1734902408528,3.0,181.81,181.7,20.9508287]
[1734902408729,3.0,181.83,181.69,0.2311]
[1734902409031,23.9508287,181.83,181.73,2.754]
[1734902409326,23.9508287,181.83,181.69,0.2311]
[1734902410129,2.7536,181.76,181.72,2.7541]
[1734902411031,3.0,181.83,181.68,23.9508287]
[1734902411329,3.0,181.84,181.71,20.9508287]
[1734902412033,2.7528,181.82,181.71,20.9508287]
[1734902412332,3.0,181.84,181.71,20.9508287]
[1734902412533,2.7528,181.81,181.71,20.9508287]
[1734902412831,3.0,181.84,181.71,20.9508287]
[1734902413033,2.7529,181.81,181.75,2.7536]
[1734902413326,3.0,181.84,181.71,20.9508287]
[1734902414330,4.9257,181.88,181.71,20.9508287]
[1734902414524,4.9257,181.88,181.74,20.9508287]
[1734902414525,7.9257,181.88,181.74,20.9508287]
[1734902414730,7.9257,181.88,181.75,3.0]
[1734902414931,2.7524,181.84,181.75,3.0]
[1734902415431,2.752,181.86,181.81,2.7528]
[1734902415630,7.9257,181.88,181.81,2.7528]
[1734902415831,7.9257,181.88,181.82,2.7526]
[1734902416032,2.7521,181.86,181.82,2.7526]
[1734902417433,2.7522,181.85,181.82,2.7526]
[1734902419733,2.7519,181.87,181.83,2.7524]
[1734902419933,7.9257,181.88,181.77,20.9508287]
[1734902420633,3.0,181.9,181.8,20.9508287]
[1734902420834,3.0,181.91,181.8,23.9508287]
[1734902421133,3.0,181.91,181.8,3.0]
[1734902421333,1.7376,181.9,181.8,3.0]
[1734902421633,1.7376,181.9,181.82,2.7525]
[1734902421835,3.2906,181.89,181.82,2.7525]
[1734902422037,3.2906,181.89,181.8,3.0]
[1734902422339,3.0,181.91,181.8,23.9508287]
[1734902422540,5.0791,181.97,181.83,20.9508287]
[1734902422737,3.0,181.96,181.83,20.9508287]
[1734902422937,5.0791,181.97,181.86,20.9508287]
[1734902423139,5.0791,181.97,181.94,2.7507]
[1734902423441,20.9508287,182.04,181.89,20.9508287]
[1734902423740,3.0,182.03,181.89,20.9508287]
[1734902424039,2.7503,181.98,181.93,2.7508]
[1734902424430,3.0,181.97,181.86,23.9508287]
[1734902424830,3.3546,181.96,181.86,3.0]
[1734902425038,2.7513,181.91,181.86,5.7519]
[1734902425238,2.7513,181.91,181.86,2.7519]
[1734902425734,5.0262,181.96,181.86,2.7519]
[1734902425735,2.7515,181.9,181.86,2.7519]
[1734902426437,2.7516,181.89,181.85,2.7521]
[1734902426642,3.0,181.92,181.81,38.16440195]
[1734902426943,2.7518,181.88,181.84,2.7523]
[1734902427540,2.7516,181.89,181.84,2.7523]
[1734902427742,2.7516,181.89,181.81,37.93540195]
[1734902427939,2.7516,181.89,181.84,2.7522]
[1734902428837,2.7519,181.87,181.83,2.7525]
[1734902429042,2.7519,181.87,181.74,0.2281]
[1734902429043,3.0,181.87,181.76,33.99570195]
[1734902429242,3.0,181.87,181.73,34.93650195]
[1734902429442,5.0766,181.86,181.76,2.7534]
[1734902429849,2.7529,181.81,181.76,2.7534]
[1734902430446,2.7529,181.8,181.76,2.7534]
[1734902430750,3.0,181.82,181.71,3.0]
[1734902431048,2.7528,181.81,181.77,2.7533]
[1734902431345,5.0766,181.86,181.73,33.99570195]
[1734902431551,3.0,181.85,181.76,33.99570195]
[1734902432358,3.0,181.85,181.69,0.2281]
[1734902432546,36.99570195,181.85,181.7,33.99570195]
[1734902432946,33.99570195,181.82,181.67,33.99570195]
[1734902433147,33.99570195,181.82,181.65,3.0]
[1734902433747,2.7541,181.73,181.68,2.7546]
[1734902434246,2.7542,181.72,181.67,2.7549]
[1734902434448,3.0,181.76,181.65,3.0]
[1734902434846,2.754,181.74,181.68,2.7546]
[1734902435247,2.754,181.74,181.65,3.0]
[1734902436853,2.754,181.74,181.67,2.7548]
[1734902437150,2.754,181.74,181.65,3.0]
[1734902437446,2.754,181.73,181.68,2.7546]
[1734902437755,3.0,181.76,181.64,3.35654323]
[1734902438557,3.0,181.76,181.66,2.7549]
[1734902438558,2.7543,181.72,181.66,2.7549]
[1734902439052,3.0,181.76,181.64,3.35654323]
[1734902439053,2.754,181.73,181.68,2.7547]
[1734902439248,3.3376,181.77,181.64,37.35224518]
[1734902439444,3.0,181.76,181.64,37.35224518]
[1734902439650,2.7538,181.75,181.71,2.7543]
[1734902439955,6.3376,181.77,181.64,37.35224518]
[1734902440548,2.7537,181.75,181.7,2.7544]
[1734902441651,2.7537,181.75,181.64,37.35224518]
[1734902441652,3.3376,181.77,181.69,3.0]
[1734902441849,3.0,181.8,181.69,3.0]
[1734902442049,3.0,181.8,181.7,33.99570195]
[1734902442748,2.7532,181.79,181.74,2.7538]
[1734902444649,2.7532,181.79,181.75,2.7536]
[1734902446060,2.753,181.8,181.75,2.7536]
[1734902446262,3.0,181.81,181.75,2.7536]
[1734902447463,2.7531,181.79,181.75,2.7536]
[1734902448867,5.7528,181.81,181.7,36.99570195]
[1734902449159,2.753,181.8,181.73,2.7539]
[1734902449364,2.753,181.8,181.7,36.99570195]
[1734902449660,3.0,181.81,181.7,36.99570195]
[1734902449865,3.0,181.81,181.71,3.0]
[1734902450467,2.7533,181.78,181.74,2.7537]
[1734902451469,2.7531,181.79,181.75,2.7537]
[1734902451972,3.0,181.81,181.75,2.7537]
[1734902452863,2.7532,181.79,181.71,3.0]
[1734902453069,3.0,181.83,181.77,2.7533]
[1734902453865,2.7529,181.81,181.77,2.7533]
[1734902455365,2.7529,181.81,181.72,20.9476758]
[1734902455565,2.7526,181.83,181.72,20.9476758]
[1734902455771,2.7526,181.83,181.75,20.9476758]
[1734902455973,2.7526,181.83,181.76,3.0]
[1734902456359,2.7522,181.86,181.83,2.7525]
[1734902456566,3.3354,181.88,181.78,20.9476758]
[1734902456765,3.0,181.9,181.81,20.9476758]
[1734902457070,3.0,181.9,181.86,2.7519]
[1734902457464,3.0,181.9,181.82,3.0]
[1734902457670,2.7516,181.89,181.82,3.0]
[1734902457968,3.0,181.9,181.78,20.9476758]
[1734902458160,3.0,181.9,181.79,3.0]
[1734902460070,2.7519,181.87,181.82,2.7526]
[1734902460271,3.0,181.9,181.79,3.0]
[1734902460972,3.4846,181.94,181.81,20.9476758]
[1734902461173,2.7514,181.91,181.84,2.7522]
[1734902461470,6.4846,181.94,181.81,20.9476758]
[1734902461670,6.4846,181.94,181.8,0.229]
[1734902461671,6.4846,181.94,181.79,3.0]
[1734902462070,2.752,181.87,181.83,2.7524]
[1734902462672,6.4846,181.94,181.79,3.0]
[1734902463371,6.4846,181.94,181.81,20.9476758]
[1734902463571,2.7515,181.9,181.86,2.7519]
[1734902463871,2.7515,181.9,181.81,20.9476758]
[1734902464069,2.7516,181.89,181.81,20.9476758]
[1734902464772,2.7516,181.89,181.85,2.7521]
[1734902465570,2.7516,181.89,181.81,20.9476758]
[1734902465767,2.7516,181.89,181.86,2.752]
[1734902467469,2.7518,181.88,181.84,2.7522]
[1734902467672,20.9476758,181.93,181.79,3.0]
[1734902468072,2.7523,181.85,181.81,2.7527]
[1734902468375,3.0,181.88,181.77,3.0]
[1734902468566,4.6967,181.87,181.77,3.0]
[1734902468772,2.7523,181.84,181.8,2.7529]
[1734902469872,3.0,181.91,181.81,23.9476758]
[1734902470775,6.4846,181.94,181.81,23.9476758]
[1734902470977,2.7512,181.92,181.81,23.9476758]
[1734902471376,2.751,181.93,181.89,2.7514]
[1734902471880,2.7511,181.92,181.89,2.7514]
[1734902472177,3.4846,181.94,181.9,2.7514]
[1734902472570,81.00330994,182.07,181.89,20.9476758]
[1734902472776,3.2275,182.04,181.94,2.7508]
[1734902472977,2.7497,182.01,181.9,3.0]
[1734902473278,2.7497,182.01,181.92,20.9476758]
[1734902473989,2.7497,182.01,181.96,2.7504]
[1734902474484,2.7496,182.02,181.97,2.7504]
[1734902474881,2.7496,182.02,181.95,3.0]
[1734902475078,5.9769,182.04,181.95,3.0]